Workbook

Sheet Лист1
B9: Ролики подачи/подхвата бумаги HP CLJ 9500 DN
B10: Фотобарабан для HP CLJ 9500 DN
B11: Комплект обслуживания модуля переноса HP CLJ9500 DN
B12: Тормозная площадка HP CLJ 9500 DN
B13: Блок проявки Kyocera FS-1300D DV-130
B14: Редуктор в сборе FS-1300D DR-130
B15: Главная плата Kyocera FS-1300D
B16: Плата питания Kyocera FS-1300/1370DN
B17: Направляющая пластина дуплекса Kyocera FS-1300D/DN
B18: Ролик подхвата обходного лотка Kyocera FS-1300D (для модели с дуплексом)
B19: Вентилятор внутренний для FS-1300D
B20: Площадка отделения ручной подачи в сборе FS-1035MFP ,1135MFP, 1300D, 1370DN
B21: Печь в сборе FK-130,1300D
B22: Тефлоновый вал Kyocera FS-1300D
B23: Лоток для бумаги Kyocera FS 1300D CT-130
B24: Блок барабана Kyocera FS-1300D DK-130
B25: Шестерня секции привода FS-1300D, 1370DN, 1035MFP, 1135MFP, ECOSYS M2035DN,M2535DN
B26: Блок проявки Kyocera FS-1370DN DV-170
B27: Редуктор в сборе DR-150 Kyocera FS-1370DN
B28: Главная плата Kyocera FS-1370DN
B29: Направляющая пластина дуплекса Kyocera FS-1370DN
B30: Ролик подхвата обходного лотка Kyocera FS-1370DN (для модели с дуплексом)
B31: Вентилятор внутренний для Kyocera FS-1370DN
B32: Лоток для бумаги Kyocera FS-1370DN CT-170
B33: Тефлоновый вал Kyocera FS-1370DN
B34: Печь в сборе Kyocera FS-1370DN, 1035MFP,1135MFP FK-170
B35: Муфта подачи бумаги FS-1300D, 1370DN
B36: Ремонтный комплект FS-1320D,1370DN MK-170
B37: Блок барабана Kyocera FS-1370D, 1035MFP, 1135MFP, ECOSYS M2035DN,M2535DN DK-170
B38: Блок лазера (сканер) FS-1035MFP,1135MFP LK-170
B39: Блок проявки Kyocera FS-1035/1135MFP DV-1140
B40: Главная плата Kyocera FS-1035MFP
B41: Главная плата Kyocera FS-1135MFP
B42: Главная плата Kyocera ECOSYS M2035DN
B43: Главная плата Kyocera FS-6530 MFP
B44: Ролик подачи бумаги (комплект) Kyocera FS-1300D, 1370DN, 1035MFP, 1135MFP, ECOSYS M2035DN (2BR06520, 2F906230, 2F906240)
B45: Ролик задержки (отделения лотка) Kyocera FS-1300D, 1370DN, 1035MFP, 1135MFP, ECOSYS M2035DN (2BR06520)
B46: Ролик подачи Kyocera FS-1300D, 1370DN, 1035MFP, 1135MFP, ECOSYS M2035DN (2F906230)
B47: Ролик подхвата Kyocera FS-1300D, 1370DN, 1035MFP, 1135MFP, ECOSYS M2035DN(2F906240)
B48: Лоток для бумаги Kyocera FS-1035MFP, 1135MFP, ECOSYS M2035DN CT-1130
B49: Тефлоновый вал Kyocera FS-1035MFP, 1135MFP, ECOSYS M2035DN,M2535DN
B50: Печь в сборе ECOSYS M2035DN FK-171
B51: Плата управления сканером FS-1035MFP,1135MFP, ECOSYS M2035DN
B52: Узел дуплекса в сборе FS-1028MFP,1030MFP,1035MFP,1130MFP,1135MFP
B53: Ролик подачи автоподатчика Kyocera FS-1035MFP, 1135MFP ECOSYS M2035DN
B54: Блок проявки FS- Kyocera FS-6525/6530MFP DV-475
B55: Редуктор в сборе Kyocera FS-6525/6530MFP DR-475
B56: Блок лазера (сканер) Kyocera FS-6525/6530MFP LK-475
B57: Драм-юнит Kyocera FS-6525/6530MFP DK-475
B58: Ролик захвата бумаги Kyocera FS-6525/6530MFP
B59: Ролик подачи автоподатчика Kyocera FS-6525/6530MFP
B60: Блок проявки DV-460 TASKalfa-180,220,181,221
B61: Муфта подачи бумаги TASKalfa-180,220,181,221
B62: Плата интерфейсная TASKalfa-180,220,181,221
B63: Стекло стола оригинала в сборе TASKalfa-180,220,181,221
B64: Плата управления двигателем TASKalfa-181
B65: Блок лазера (сканер) LK-460 TASKalfa-180,220,181,221
B66: Плата сканера (сетевая) (F)B KM-1650,2050, TASKalfa-181,221
B67: Ролик подачи бумаги TASKalfa-181,221
B68: Тефлоновый вал TASKalfa-180,220,181,221
B69: Печь в сборе TASKalfa-180,220,181,221 FK-460
B70: Ремонтный комплект MK-460 TASKalfa-180,220,181,221
B71: Ролик подачи автоподатчика TASKalfa-180,220,181,221
B72: Лоток для бумаги Kyocera TASKalfa-180,220,181,221
B73: Ролики захвата бумаги Xerox WC-4118 с нижнего лотка (комплект 2 шт.)
B74: Ролик захвата бумаги Xerox WC-4118 с бокового лотка
B75: Плата HVPS Xerox WC 4118
B76: Чип для лазерного картриджа Xerox, Samsung
B77: Чип для лазерного картриджа Sharp, МВ
B78: Блок привода в сборе Samsung SCX 4100
B79: Блок фиксации в сборе Samsung SCX 4100
B80: Шлейф сканера Samsung SCX 4100
B81: Тефлоновый вал Samsung SCX 4100
B82: Резиновый вал блока проявки Samsung SCX 4100
B83: Двигатель привода сканера Samsung SCX 4100
B84: Шестерня редуктора Samsung SCX 4100
B85: Шестерня печки Samsung SCX 4100
B86: Нижний лоток Samsung SCX 4100
B87: Ролик захвата бумаги Samsung SCX 4100
B88: Плата SMPS Xerox WC 4118
B89: Ролик захвата бумаги Ricoh Aficio MP 171S, MP 201
B90: Узел закрепления в сборе Ricoh Aficio MP 171S, MP201
B91: Блок проявки в cборе Ricoh Aficio MP 171S, MP 201
B92: Лоток для бумаги Ricoh Aficio MP 171S, MP 201
B93: Фотобарабан Ricoh MP 2000
B94: Ракель Ricoh MP 2000
B95: Ролик заряда Ricoh MP 2000
B96: Лоток для бумаги Ricoh MP 2000
B97: Ролик подачи бумаги Ricoh MP 2000
B98: Узел подачи тонера в сборе Ricoh MP 2000
B99: Тефлоновый вал Ricoh MP 2000
B100: Магнитный вал в сборе Ricoh MP 2000
B101: Девелопер Ricoh Aficio MP 171, 201
B102: Фотобарабан Ricoh Aficio MP 171, 201
B103: Ракель Ricoh Aficio MP 171, 201
B104: Плата электроники источника бесперебойного питания Ippon Power Pro
B105: Аккумуляторная батарея источника бесперебойного питания 12V 7А
B106: Аккумуляторная батарея источника бесперебойного питания 12V 12А
B107: Аккумуляторная батарея GCM Powercom
B108: Картридж для Canon PIXMA iX7000 PGI-9M
B109: Картридж для Canon PIXMA iX7000 PGI-9C
B110: Картридж для Canon PIXMA iX7000 PGI-9Y
B111: Картридж для Canon PIXMA iX7000 PGI-9PBK
B112: Картридж для Canon PIXMA iX7000 PGI-7BK
B113: Картридж для Canon PIXMA iX7000 PGI-9 Clear
B114: СНПЧ для Canon PIXMA iX7000
B115: Чернила для фотопечати на Canon PIXMA iX7000 inksystem 1000 мл. (комплект 6 цветов Black, Photo Black, Yellow, Cyan, Magenta, Clear)
B116: Чернила для фотопечати на Canon PIXMA iX7000 inksystem 1000 мл. Black
B117: Чернила для для фотопечати на Canon PIXMA iX7000 inksystem 1000 мл. Photo Black
B118: Чернила для фотопечати на Canon PIXMA iX7000 inksystem 1000 мл. Yellow
B119: Чернила для фотопечати на Canon PIXMA iX7000 inksystem 1000 мл. Cyan
B120: Чернила для фотопечати на Canon PIXMA iX7000 inksystem 1000 мл. Magenta
B121: Чернила для фотопечати на Canon PIXMA iX7000 inksystem 1000 мл. Clear
B122: Картридж для EPSON Stylus Photo P50 черный C13T08014010
B123: Картридж для EPSON Stylus Photo P50 голубой C13T08024010
B124: Картридж для EPSON Stylus Photo P50 пурпурный C13T08034010
B125: Картридж для EPSON Stylus Photo P50 желтый C13T08044010
B126: Картридж для EPSON Stylus Photo P50 светло-голубой C13T08054010
B127: Картридж для EPSON Stylus Photo P50 светло-пурпурный C13T08064010
B128: СНПЧ для EPSON Stylus Photo P50
B129: Картридж для EPSON Stylus Photo 1410 черный C13T11114A10
B130: Картридж для EPSON Stylus Photo 1410 голубой C13T11124A10
B131: Картридж для EPSON Stylus Photo 1410 пурпурный C13T11134A10
B132: Картридж для EPSON Stylus Photo 1410 желтый C13T11144A10
B133: Картридж для EPSON Stylus Photo 1410 светло-голубой C13T11154A10
B134: Картридж для EPSON Stylus Photo 1410 светло-пурпурный C13T11164A10
B135: СНПЧ для EPSON Stylus Photo 1410
B136: Чернила для фотопечати на EPSON Stylus Photo inksystem 1000 мл. (комплект 6 цветов Cyan, Magenta, Yellow, Black, Light Cyan, Light Magenta)
B137: Чернила для фотопечати на EPSON Stylus Photo inksystem 1000 мл. Cyan
B138: Чернила для фотопечати на EPSON Stylus Photo inksystem 1000 мл. Magenta
B139: Чернила для фотопечати на EPSON Stylus Photo inksystem 1000 мл. Yellow
B140: Чернила для фотопечати на EPSON Stylus Photo inksystem 1000 мл. Black
B141: Чернила для фотопечати на EPSON Stylus Photo inksystem 1000 мл. Light Cyan
B142: Чернила для фотопечати на EPSON Stylus Photo inksystem 1000 мл. Light Magenta
B143: Печатающая головка для HP DesignJet 130 C5019A №84 черная
B144: Печатающая головка для HP DesignJet 130 C9420A №85 голубая
B145: Печатающая головка для HP DesignJet 130 C9421A №85 пурпурная
B146: Печатающая головка для HP DesignJet 130 C9422A №85 желтый
B147: Печатающая головка для HP DesignJet 130 C9423A №85 светло-голубая
B148: Печатающая головка для HP DesignJet 130 C9424A №85 светло-пурпурная
B149: Картридж для HP DesignJet 130 C5016A №84 черный (69ml)
B150: Картридж для HP DesignJet 130 C9425A №85 голубой (28мл.)
B151: Картридж для HP DesignJet 130 C9426A №85 пурпурный (28мл.)
B152: Картридж для HP DesignJet 130 C9427A №85 желтый (69мл.)
B153: Картридж для HP DesignJet 130 C9428A №85 светло-голубой (69мл.)
B154: Картридж для HP DesignJet 130 C9429A №85 светло-пурпурный (69мл.)
B155: Картридж для Canon LBP6000/6020 Cartridge 725 (3484B002)
B156: Печатающая головка Canon Pixma IX7000
B157: Картридж для Ricoh COLOR LP TONER TYPE 245 CYAN (888283)
B158: Картридж для Ricoh COLOR LP TONER TYPE 245 MAGENTA (888282)
B159: Картридж для Ricoh COLOR LP TONER TYPE 245 YELLOW (888281)
B160: Картридж для Ricoh COLOR LP TONER TYPE 245 BLACK HY (888312)
B161: Тонер-картридж для XEROX WC 4118p/4118x (006R01278)
B162: Главная плата EPSON Stylus Photo P50
B163: Печатающая головка EPSON Stylus Photo P50
B164: Поглотитель чернил (памперс, абсорбер) П-образный EPSON Stylus Photo P50
B165: Шлейф печатающей головки в сборе EPSON Stylus Photo P50
B166: Принт-картридж для XEROX Phaser 3117/3122/3124/3125 (106R01159)
B167: Принт-картридж для XEROX Phaser 3120/3121/3130 (109R00725)
B168: Картридж для HP LaserJet 1010/3015/1020/1022 (Q2612A)
B169: Картридж для HP LaserJet 1000, 1005, 1200, 1220, 3300, 3320mpf, 3330mpf, 3380 (C7115A)
B170: Картридж для HP LaserJet 1300 (Q2613A)
B171: Картридж для HP LaserJet 1160/1320 (Q5949A)
B172: Картридж для HP LaserJet P1005/P1006 (CB435A)
B173: Картридж для HP LaserJet P3005/M3035mfp/M3027mfp (Q7551A)
B174: Картридж для HP LaserJet 4250/4350 (Q5942A)
B175: Картридж для Samsung SCX-4100 (SCX-4100D3)
B176: Главная плата EPSON Stylus Photo 1410
B177: Кабель питания 220V EUR CL2 1.9m 2pVD21202SRAS2B3
B178: Печатающая головка EPSON Stylus Photo R270/R390/RX560/RX590/1400/1410
B179: Шлейф печатающей головки EPSON Stylus Photo 1410
B180: Каретка печатающей головки в сборе с шлейфом и ремнем привода EPSON Stylus Photo 1400/1410
B181: Картридж для HP LaserJet 1100/1100A (C4092A)
B182: Картридж для Ricoh Aficio MP C3500 тип MP C4500E голубой
B183: Картридж для Ricoh Aficio MP C3500 тип MP C4500E желтый
B184: Картридж для Ricoh Aficio MP C3500 тип MP C4500E малиновый
B185: Картридж для Ricoh Aficio MP C3500 тип MP C4500E черный
B186: Картридж для Ricoh Aficio MP 171/201 тип 1270D
B187: Картридж для Ricoh Aficio MP 2000 тип 1230D
B188: Картридж для EPSON Stylus Photo 1290 (T00740210)
B189: Картридж для EPSON Stylus Photo 1290 (T00940210)
B190: Копи-картридж для XEROX WC Pro 420 (101R00023)
B191: Тонер-картридж для XEROX WC Pro 420 (006R01044)
B192: Картридж для Kyocera FS-1300D (TK-130)
B193: Картридж для Kyocera FS-1035/1135/2035MFP (TK-1140)
B194: Картридж для Kyocera FS-1370DN (TK-170)
B195: Картридж для Kyocera TASKalfa 180 181 220 221 (TK-435)
B196: Картридж для Kyocera FS-6526/6530MFP (TK-475)
B197: Тонер-картридж PANASONIC KX-FA83A7
B198: Тонер-картридж PANASONIC KX-FAT88A7
B199: Термопленка PANASONIC KX-FA54A7
B200: Барабан Panasonic KX-FAD89A7
B201: Тонер-картридж для Ricoh Aficio 1075 (7000 стр)
B202: Тонер-картридж для HP Color LaserJet 9500DN(Black)
B203: Тонер-картридж для HP Color LaserJet 9500DN (Cyan,Magenta,Yellow)
B204: Драм-юнит HP Color LaserJet 9500DN (Cyan,Magenta,Yellow)
B205: Драм-юнит HP Color LaserJet 9500DN(Black)
B206: Тонер-картридж для Xerox WC 5865/5875/5890 (006R01552)
B207: Тонер-картридж 006R01179 black для Xerox Copycentre C118
B208: Фотобарабан Xerox 013R00589 для Xerox Copycentre C118

Sheet Лист2
B2: Место | C2: 1 дивизион | D2: 2 дивизион | E2: 3 дивизион | F2: 4 дивизион | G2: Общ. СВ1 | H2: Общ. СВ2 | I2: Общ. СВ3 | J2: Общ. СВ4 | K2: Спонсор 1 | L2: Спонсор 2 | M2: Спонсор 3 | N2: Спонсор 4 | O2: Риски 1 | P2: Риски 2 | Q2: Риски 3 | R2: Риски 4 | S2: 1 дивизион | T2: 2 дивизион | U2: 3 дивизион | V2: 4 дивизион | W2: Место
B3: 1 | C3: 80000000 | D3: 50000000 | E3: 30000000 | F3: 15000000 | G3: =SUM(C3:F3) -> 175000000 | H3: =SUM(C3:E3) -> 160000000 | I3: =SUM(C3:D3) -> 130000000 | J3: =SUM(C3,F3*2) -> 110000000 | K3: =G21+G22 -> 5314306.641 | L3: =H21+H22 -> 4937255.859 | M3: 4183154.297 | N3: 3525732.422 | O3: =K3*12% -> 637716.7969 | P3: =L3*14% -> 691215.8203 | Q3: =M3*16% -> 669304.6875 | R3: =N3*18% -> 634631.8359 | S3: =K3-O3 -> 4676589.844 | T3: =L3-P3 -> 4246040.039 | U3: =M3-Q3 -> 3513849.609 | V3: =N3-R3 -> 2891100.586 | W3: 1
B4: 2 | C4: 71600000 | D4: 42900000 | E4: 25000000 | F4: 12500000 | G4: =SUM(C4:F4) -> 152000000 | H4: =SUM(C4:E4) -> 139500000 | I4: =SUM(C4:D4) -> 114500000 | J4: =SUM(C4,F4*2) -> 96600000 | K4: =G21+G22 -> 5314306.641 | L4: =H21+H22 -> 4937255.859 | M4: 4183154.297 | N4: 3525732.422 | O4: =K4*14% -> 744002.9297 | P4: =L4*16% -> 789960.9375 | Q4: =M4*18% -> 752967.7734 | R4: =N4*20% -> 705146.4844 | S4: 4570303.711 | T4: 4147294.922 | U4: 3430186.523 | V4: 2820585.938 | W4: 2
B5: 3 | C5: 64000000 | D5: 36800000 | E5: 20900000 | F5: 10500000 | G5: 132200000 | H5: 121700000 | I5: 100800000 | J5: 85000000 | K5: =G21+G22 -> 5314306.641 | L5: =H21+H22 -> 4937255.859 | M5: 4183154.297 | N5: 3525732.422 | O5: =K5*16% -> 850289.0625 | P5: =L5*18% -> 888706.0547 | Q5: =M5*20% -> 836630.8594 | R5: =N5*22% -> 775661.1328 | S5: 4464017.578 | T5: 4048549.805 | U5: 3346523.438 | V5: 2750071.289 | W5: 3
B6: 4 | C6: 57200000 | D6: 31500000 | E6: 17500000 | F6: 8700000 | G6: 114900000 | H6: 106200000 | I6: 88700000 | J6: 74600000 | K6: =G21+G22 -> 5314306.641 | L6: =H21+H22 -> 4937255.859 | M6: 4183154.297 | N6: 3525732.422 | O6: =K6*18% -> 956575.1953 | P6: =L6*20% -> 987451.1719 | Q6: =M6*22% -> 920293.9453 | R6: =N6*24% -> 846175.7812 | S6: 4357731.445 | T6: 3949804.688 | U6: 3262860.352 | V6: 2679556.641 | W6: 4
B7: 5 | C7: 51200000 | D7: 27100000 | E7: 14600000 | F7: 7300000 | G7: 100200000 | H7: 92900000 | I7: 78300000 | J7: 65800000 | K7: =G21+G23 -> 4871447.754 | L7: =H21+H23 -> 4525817.871 | M7: 3834558.105 | N7: 3231921.387 | O7: =K7*12% -> 584573.7305 | P7: =L7*14% -> 633614.502 | Q7: =M7*16% -> 613529.2969 | R7: =N7*18% -> 581745.8496 | S7: 4286874.023 | T7: 3892203.369 | U7: 3221028.809 | V7: 2650175.537 | W7: 5
B8: 6 | C8: 45800000 | D8: 23200000 | E8: 12200000 | F8: 6100000 | G8: 87300000 | H8: 81200000 | I8: 69000000 | J8: 58000000 | K8: =G21+G23 -> 4871447.754 | L8: =H21+H23 -> 4525817.871 | M8: 3834558.105 | N8: 3231921.387 | O8: =K8*14% -> 682002.6855 | P8: =L8*16% -> 724130.8594 | Q8: =M8*18% -> 690220.459 | R8: =N8*20% -> 646384.2773 | S8: 4189445.068 | T8: 3801687.012 | U8: 3144337.646 | V8: 2585537.109 | W8: 6
B9: 7 | C9: 41000000 | D9: 19900000 | E9: 10200000 | F9: 5100000 | G9: 76200000 | H9: 71100000 | I9: 60900000 | J9: 51200000 | K9: =G21+G23 -> 4871447.754 | L9: =H21+H23 -> 4525817.871 | M9: 3834558.105 | N9: 3231921.387 | O9: =K9*16% -> 779431.6406 | P9: =L9*18% -> 814647.2168 | Q9: =M9*20% -> 766911.6211 | R9: =N9*22% -> 711022.7051 | S9: 4092016.113 | T9: 3711170.654 | U9: 3067646.484 | V9: 2520898.682 | W9: 7
B10: 8 | C10: 36600000 | D10: 17100000 | E10: 8500000 | F10: 4200000 | G10: 66400000 | H10: 62200000 | I10: 53700000 | J10: 45000000 | K10: =G21+G23 -> 4871447.754 | L10: =H21+H23 -> 4525817.871 | M10: 3834558.105 | N10: 3231921.387 | O10: =K10*17% -> 828146.1182 | P10: =L10*19% -> 859905.3955 | Q10: =M10*21% -> 805257.2021 | R10: =N10*23% -> 743341.9189 | S10: 4043301.636 | T10: 3665912.476 | U10: 3029300.903 | V10: 2488579.468 | W10: 8
B11: 9 | C11: 32800000 | D11: 14600000 | E11: 7100000 | F11: 3500000 | G11: 58000000 | H11: 54500000 | I11: 47400000 | J11: 39800000 | K11: =G21-G24 -> 4650018.311 | L11: =H21-H24 -> 4320098.877 | M11: 3660260.01 | N11: 3085015.869 | O11: =K11*15% -> 697502.7466 | P11: =L11*17% -> 734416.8091 | Q11: =M11*19% -> 695449.4019 | R11: =N11*21% -> 647853.3325 | S11: 3952515.564 | T11: 3585682.068 | U11: 2964810.608 | V11: 2437162.537 | W11: 9
B12: 10 | C12: 29300000 | D12: 12600000 | E12: 5900000 | F12: 3000000 | G12: 50800000 | H12: 47800000 | I12: 41900000 | J12: 35300000 | K12: =G21-G24 -> 4650018.311 | L12: =H21-H24 -> 4320098.877 | M12: 3660260.01 | N12: 3085015.869 | O12: =K12*16% -> 744002.9297 | P12: =L12*18% -> 777617.7979 | Q12: =M12*20% -> 732052.002 | R12: =N12*22% -> 678703.4912 | S12: 3906015.381 | T12: 3542481.079 | U12: 2928208.008 | V12: 2406312.378 | W12: 10
B13: 11 | C13: 26200000 | D13: 10800000 | E13: 4900000 | F13: 2500000 | G13: 44400000 | H13: 41900000 | I13: 37000000 | J13: 31200000 | K13: =G21-G24 -> 4650018.311 | L13: =H21-H24 -> 4320098.877 | M13: 3660260.01 | N13: 3085015.869 | O13: =K13*18% -> 837003.2959 | P13: =L13*20% -> 864019.7754 | Q13: =M13*22% -> 805257.2021 | R13: =N13*24% -> 740403.8086 | S13: 3813015.015 | T13: 3456079.102 | U13: 2855002.808 | V13: 2344612.061 | W13: 11
B14: 12 | C14: 23400000 | D14: 9200000 | E14: 4100000 | F14: 2100000 | G14: 38800000 | H14: 36700000 | I14: 32600000 | J14: 27600000 | K14: =G21-G24 -> 4650018.311 | L14: =H21-H24 -> 4320098.877 | M14: 3660260.01 | N14: 3085015.869 | O14: =K14*20% -> 930003.6621 | P14: =L14*22% -> 950421.7529 | Q14: =M14*24% -> 878462.4023 | R14: =N14*26% -> 802104.126 | S14: 3720014.648 | T14: 3369677.124 | U14: 2781797.607 | V14: 2282911.743 | W14: 12
B15: 13 | C15: 21000000 | D15: 7900000 | E15: 3400000 | F15: 1700000 | G15: 34000000 | H15: 32300000 | I15: 28900000 | J15: 24400000 | K15: =G21-G23 -> 4576208.496 | L15: =H21-H23 -> 4251525.879 | M15: 3602160.645 | N15: 3036047.363 | O15: =K15*22% -> 1006765.869 | P15: =L15*24% -> 1020366.211 | Q15: =M15*26% -> 936561.7676 | R15: =N15*28% -> 850093.2617 | S15: 3569442.627 | T15: 3231159.668 | U15: 2665598.877 | V15: 2185954.102 | W15: 13
B16: 14 | C16: 18800000 | D16: 6800000 | E16: 2900000 | F16: 1400000 | G16: 29900000 | H16: 28500000 | I16: 25600000 | J16: 21600000 | K16: =G21-G23 -> 4576208.496 | L16: =H21-H23 -> 4251525.879 | M16: 3602160.645 | N16: 3036047.363 | O16: =K16*24% -> 1098290.039 | P16: =L16*26% -> 1105396.729 | Q16: =M16*28% -> 1008604.98 | R16: =N16*30% -> 910814.209 | S16: 3477918.457 | T16: 3146129.15 | U16: 2593555.664 | V16: 2125233.154 | W16: 14
B17: 15 | C17: 16800000 | D17: 5800000 | E17: 2400000 | F17: 1200000 | G17: 26200000 | H17: 25000000 | I17: 22600000 | J17: 19200000 | K17: =G21-G23 -> 4576208.496 | L17: =H21-H23 -> 4251525.879 | M17: 3602160.645 | N17: 3036047.363 | O17: =K17*26% -> 1189814.209 | P17: =L17*28% -> 1190427.246 | Q17: =M17*30% -> 1080648.193 | R17: =N17*32% -> 971535.1562 | S17: 3386394.287 | T17: 3061098.633 | U17: 2521512.451 | V17: 2064512.207 | W17: 15
B18: 16 | C18: 15000000 | D18: 5000000 | E18: 2000000 | F18: 1000000 | G18: 23000000 | H18: 22000000 | I18: =SUM(C18:D18) -> 20000000 | J18: 17000000 | K18: =G21-G23 -> 4576208.496 | L18: =H21-H23 -> 4251525.879 | M18: 3602160.645 | N18: 3036047.363 | O18: =K18*28% -> 1281338.379 | P18: =L18*30% -> 1275457.764 | Q18: =M18*32% -> 1152691.406 | R18: =N18*34% -> 1032256.104 | S18: 3294870.117 | T18: 2976068.115 | U18: 2449469.238 | V18: 2003791.26 | W18: 16
C19: =SUM(C3:C18) -> 630700000 | D19: 321200000 | E19: =SUM(E3:E18)*2 -> 343200000 | F19: =SUM(F3:F18)*2 -> 171600000 | G19: =SUM(G3:G18) -> 1209300000 | H19: =SUM(H3:H18) -> 1123500000 | I19: =SUM(I3:I18) -> 951900000 | J19: =SUM(J3:J18) -> 802300000 | K19: =SUM(K3:K6,K7:K10,K11:K14,K15:K18) -> 77647924.8 | L19: =SUM(L3:L6,L7:L10,L11:L14,L15:L18) -> 72138793.95 | M19: 61120532.23 | N19: 51514868.16 | O19: =SUM(O3:O6,O7:O10,O11:O14,O15:O18) -> 13847459.29 | P19: =SUM(P3:P6,P7:P10,P11:P14,P15:P18) -> 14307756.04 | Q19: =SUM(Q3:Q6,Q7:Q10,Q11:Q14,Q15:Q18) -> 13344843.2 | R19: =SUM(R3:R6,R7:R10,R11:R14,R15:R18) -> 12277873.47 | S19: =SUM(S3:S18) -> 63800465.52 | T19: =SUM(T3:T18) -> 57831037.9 | U19: =SUM(U3:U18) -> 47775689.03 | V19: =SUM(V3:V18) -> 39236994.69
G20: =G19/16 -> 75581250 | H20: =H19/16 -> 70218750 | I20: 59493750 | J20: 50143750
G21: =G20/16 -> 4723828.125 | H21: =H20/16 -> 4388671.875 | I21: 3718359.375 | J21: 3133984.375
G22: =G21/8 -> 590478.5156 | H22: =H21/8 -> 548583.9844 | I22: 464794.9219 | J22: 391748.0469
G23: =G22/4 -> 147619.6289 | H23: =H22/4 -> 137145.9961 | I23: 116198.7305 | J23: 97937.01172
G24: =G23/2 -> 73809.81445 | H24: =H23/2 -> 68572.99805 | I24: =I23/2 -> 58099.36523 | J24: 48968.50586
B56: 1 | W56: 1
B57: 2 | W57: 2
B58: 3 | W58: 3
B59: 4 | W59: 4
B61: 5 | W61: 5
B62: 6 | W62: 6
B63: 7 | W63: 7
B64: 8 | W64: 8
B66: 9 | W66: 9
B67: 10 | W67: 10
B68: 11 | W68: 11
B69: 12 | W69: 12
B71: 13 | W71: 13
B72: 14 | W72: 14
B73: 15 | W73: 15
B74: 16 | W74: 16

Sheet Лист3
B2: Место | C2: 1 дивизион | D2: 2 дивизион | E2: 3 дивизион | F2: 4 дивизион
B3: 1 | C3: 80000000 | D3: 50000000 | E3: 30000000 | F3: 15000000
B4: 2 | C4: 71600000 | D4: 42900000 | E4: 25000000 | F4: 12500000
B5: 3 | C5: 64000000 | D5: 36800000 | E5: 20900000 | F5: 10500000
B6: 4 | C6: 57200000 | D6: 31500000 | E6: 17500000 | F6: 8700000
B7: 5 | C7: 51200000 | D7: 27100000 | E7: 14600000 | F7: 7300000
B8: 6 | C8: 45800000 | D8: 23200000 | E8: 12200000 | F8: 6100000
B9: 7 | C9: 41000000 | D9: 19900000 | E9: 10200000 | F9: 5100000
B10: 8 | C10: 36600000 | D10: 17100000 | E10: 8500000 | F10: 4200000
B11: 9 | C11: 32800000 | D11: 14600000 | E11: 7100000 | F11: 3500000
B12: 10 | C12: 29300000 | D12: 12600000 | E12: 5900000 | F12: 3000000
B13: 11 | C13: 26200000 | D13: 10800000 | E13: 4900000 | F13: 2500000
B14: 12 | C14: 23400000 | D14: 9200000 | E14: 4100000 | F14: 2100000
B15: 13 | C15: 21000000 | D15: 7900000 | E15: 3400000 | F15: 1700000
B16: 14 | C16: 18800000 | D16: 6800000 | E16: 2900000 | F16: 1400000
B17: 15 | C17: 16800000 | D17: 5800000 | E17: 2400000 | F17: 1200000
B18: 16 | C18: 15000000 | D18: 5000000 | E18: 2000000 | F18: 1000000
